Cogmind - Beta 15 @@@ ROGUE MODE // 2025.10.04 @ 21:57:06 Player: Roland Result: Destroyed by G-47 Trooper with Particle Gun Performance ------------- Evolutions (2) 1000 Regions Visited (5) 1000 Robots Destroyed (46) 230 Value Destroyed (1265) 1265 Prototype IDs (1) 20 Alien Tech Used (0) 0 Bonus (100) 100 TOTAL SCORE: 3615 Bonus ------- Follower Combat Kills 117 Friendly Fire -17 Cogmind --------- Core Integrity 0/550 Matter 300/300 Energy 100/100 System Corruption 8% Temperature Cool (9) Movement Core (50) Location -8/Materials Parts ------- > --- POWER (2) -------- (None) > --- PROPULSION (3) --- (None) > --- UTILITY (3) ------ Sensor Array Melee Analysis Suite > --- WEAPON (3) ------- (None) > --- INVENTORY (5) ---- (None) Peak State ------------ > --- POWER ------------ Improved Ion Engine Cooled Ion Engine > --- PROPULSION ------- Aluminum Leg > --- UTILITY ---------- Small Storage Unit Hardened Light Armor Plating Shield Generator > --- WEAPON ----------- Shock Rifle Shock Rifle Beamcaster > --- INVENTORY -------- Melee Analysis Suite System Shield Heavy EM Pulse Gun Shock Rifle Flak Cannon [Rating: 23] Favorites ----------- Power Improved Ion Engine Engine Improved Ion Engine Propulsion Aluminum Leg Leg Aluminum Leg Wheel Wheel Utility Small Storage Unit Device Improved Terrain Scanner Storage Small Storage Unit Processor Terrain Scan Processor Hackware System Shield Protection Core Shielding Weapon Shock Rifle Energy Gun Shock Rifle Energy Cannon Beam Cannon Ballistic Cannon Flak Cannon Build | -11 -10 -10 -9 -9 -8 ------- Run | Yrd Mat Min Mat Min Mat Slots Evolved 4 | . . . 2 . 2 Power 1 | . . . 1 . . Propulsion 1 | . . . . . 1 Utility 1 | . . . 1 . . Weapon 1 | . . . . . 1 Parts Attached 40 | 8 8 2 12 2 8 Power 7 | 1 1 . 4 1 . Engine 7 | 1 1 . 4 1 . Core . | . . . . . . Reactor . | . . . . . . Propulsion 7 | 2 2 2 1 . . Treads . | . . . . . . Leg 5 | 2 2 . 1 . . Wheel 2 | . . 2 . . . Hover . | . . . . . . Flight . | . . . . . . Utility 12 | 2 2 . 2 1 5 Device 4 | 1 . . 1 . 2 Storage 3 | 1 . . 1 . 1 Processor 2 | . 1 . . . 1 Hackware 1 | . . . . . 1 Protection 2 | . 1 . . 1 . Artifact . | . . . . . . Weapon 14 | 3 3 . 5 . 3 Energy Gun 10 | 3 1 . 4 . 2 Energy Cannon 3 | . 2 . 1 . . Ballistic Gun . | . . . . . . Ballistic Cannon 1 | . . . . . 1 Launcher . | . . . . . . Special Weapon . | . . . . . . Impact Weapon . | . . . . . . Slashing Weapon . | . . . . . . Piercing Weapon . | . . . . . . Special Melee Weapon . | . . . . . . Unidentified Prototypes 1 | . . . . 1 . Parts Lost 26 | . 6 2 2 1 15 Power 5 | . 1 . 1 1 2 Propulsion 6 | . 2 2 1 . 1 Utility 7 | . 1 . . . 6 Weapon 8 | . 2 . . . 6 Highest Loss Streak 10 | . 3 2 2 1 10 To Critical Strikes . | . . . . . . Average Backups 6 | 3 5 7 6 7 5 Power 1 | . 1 2 2 1 . Propulsion . | 1 2 1 . . . Utility 1 | . . . 1 2 2 Weapon 2 | . 1 3 2 3 3 Tool/Special . | . . . . . . Unused Backups 6 | . 2 1 2 1 . Power 1 | . . 1 . . . Propulsion . | . . . . . . Utility . | . . . . . . Weapon 5 | . 2 . 2 1 . Tool/Special . | . . . . . . Average Slot Usage (%) 87 | . 98 97 92 82 68 Engine 16 | . 13 14 21 16 15 Leg 13 | . 27 23 5 11 8 Wheel 3 | . . 1 11 . . Device 1 | . 3 . 2 . 1 Storage 17 | . 14 14 19 22 15 Processor 1 | . 4 . . . . Protection 8 | . 4 14 11 10 6 Energy Gun 16 | . 21 . 8 22 20 Energy Cannon 6 | . 6 28 13 . . Peak Build Rating 23 | 9 9 8 14 17 23 Average Rating 11 | 5 7 6 11 14 17 On Entrance 9 | . 9 7 7 14 17 Naked Turns . | . . . . . . Heaviest Build 38 | 13 15 15 29 34 38 Greatest Support 20 | 20 20 20 20 10 10 Greatest Overweight (x) 8 | . 1 . 8 3 3 Average Overweight (x) 1 | . . . 1 2 2 Largest Inventory Capacity 8 | 8 8 8 8 8 8 Average Capacity 7 | 7 8 8 8 8 7 Most Carried 8 | 5 8 8 8 8 8 Average Carried 6 | 3 5 7 6 7 5 Final Capacity 8 | 8 8 8 8 8 5 Final Carried 8 | 4 8 6 7 7 . Class Distribution -------------------- 85% | Mutant 10% | Tank 4% | Scavenger-Mutant Dominant Class ---------------- Mutant | -10/Materials Mutant | -10/Mines Mutant | -9/Materials Mutant | -9/Mines Tank | -8/Materials Resources | -11 -10 -10 -9 -9 -8 ----------- Run | Yrd Mat Min Mat Min Mat Matter Collected 601 | 280 46 39 125 . 111 Remotely . | . . . . . . Salvage Created 1769 | 142 608 209 338 39 433 Parts 101 | 8 46 11 21 . 15 Haulers Intercepted . | . . . . . . Recyclers Shooed 1 | . . . . . 1 Parts Field Recycled . | . . . . . . Retrieved Matter . | . . . . . . Parts Self-Destructed . | . . . . . . Prevented . | . . . . . . Kills | -11 -10 -10 -9 -9 -8 ------- Run | Yrd Mat Min Mat Min Mat Combat Hostiles Destroyed 35 | . 14 8 7 1 5 Guns 16 | . 11 . . 1 4 Cannons 16 | . . 8 7 . 1 AOE 3 | . 3 . . . . Classes Destroyed 9 | 2 5 . 1 . 1 Worker 1 | . . . . . 1 Builder 1 | . 1 . . . . Tunneler 2 | 2 . . . . . Recycler 4 | 1 1 . . . 2 Operator 1 | . 1 . . . . Watcher 2 | . 1 . 1 . . Swarmer 8 | . 3 5 . . . Grunt 22 | . 11 3 3 . 5 Sentry 4 | . . . 4 . . Best Kill Streak 8 | 2 8 5 2 1 4 Combat Bots Only 6 | . 6 5 2 1 4 Max Kills in Single Turn 3 | 2 3 2 1 1 1 Gunslinging . | . . . . . . Exploded 2 | . 2 . . . . Melee . | . . . . . . Uniques/NPCs Destroyed 1 | . . . . 1 . YI-UF0 (-9/Mines) Combat | -11 -10 -10 -9 -9 -8 -------- Run | Yrd Mat Min Mat Min Mat Hostile Shots Fired 204 | . 64 31 31 . 78 Missed 41 | . 16 6 5 . 14 Hits 163 | . 48 25 26 . 64 Projectile 163 | . 48 25 26 . 64 AOE 2 | . . . . 2 . Critical Strikes 3 | . 1 . . . 2 Damage Taken 2681 | 28 596 258 381 74 1344 Core 798 | . 150 51 45 . 552 Absorbed by Shields 33 | . . . . . 33 Redirected to Shielding 19 | . . 10 9 . . Core Remaining (%) 69 | 100 . 19 . 88 . Volleys Fired 113 | 6 40 12 28 3 24 Largest 3 | 2 2 2 2 2 3 Hottest 150 | 80 120 120 120 100 150 Shots Fired 212 | 12 79 24 53 6 38 Gun 123 | 12 67 . 4 6 34 Cannon 89 | . 12 24 49 . 4 Launcher . | . . . . . . Special . | . . . . . . Kinetic 4 | . . . . . 4 Thermal 104 | . 30 24 49 . 1 Explosive . | . . . . . . Electromagnetic 104 | 12 49 . 4 6 33 Robot Hit Streak 7 | 6 6 5 7 3 6 Robot Miss Streak 8 | 2 8 4 7 2 5 Penetration Max . | . . . . . . Secondary Targets 5 | . 3 . . . 2 Max Gunslinging Chain 1 | . 1 . . . 1 Shots Hit Robots 114 | 9 41 10 28 3 23 Core Hits 87 | 4 28 9 13 1 32 Critical Kills . | . . . . . . Critical Parts Destroyed . | . . . . . . Critical Strikes 2 | . 1 . . 1 . Corrupt 2 | . 1 . . 1 . Melee Attacks . | . . . . . . Impact . | . . . . . . Slashing . | . . . . . . Piercing . | . . . . . . Sneak Attacks . | . . . . . . Combat Hostiles . | . . . . . . Follow-up Attacks . | . . . . . . Damage Inflicted 2346 | 216 756 192 538 42 602 Guns 1175 | 125 519 . 62 42 427 Cannons 809 | . 52 192 456 . 109 Explosions 329 | 91 185 . 20 . 33 Melee . | . . . . . . Ramming 33 | . . . . . 33 Kinetic 109 | . . . . . 109 Thermal 1203 | 91 390 192 476 . 54 Explosive . | . . . . . . Electromagnetic 1001 | 125 366 . 62 42 406 Impact . | . . . . . . Slashing . | . . . . . . Piercing . | . . . . . . Highest Corruption 8 | . . . . . 8 Average Corruption 7 | . . . . . 7 Corruption Purged . | . . . . . . Corruption Blocked . | . . . . . . Effects 4 | . . . . . 4 Message Errors 1 | . . . . . 1 Matter Fused 1 | . . . . . 1 Heat Flow Errors 1 | . . . . . 1 Misfires 1 | . . . . . 1 Overload Shots . | . . . . . . Overflow Damage 23 | . 9 . 9 . 5 Projectiles 18 | . 9 . 9 . . Explosions 5 | . . . . . 5 Melee . | . . . . . . Knockbacks 8 | . . . . . 8 Impact 1 | . . . . . 1 Kinetic 7 | . . . . . 7 Secondary . | . . . . . . Self-Inflicted Damage 136 | 29 76 . . . 31 Shots 4 | 1 2 . . . 1 Rammed 5 | . . . . . 5 Targets Rammed 22 | . . . . . 22 Kicked 17 | . . . . . 17 Crushed . | . . . . . . Highest Temperature 581 | 54 240 300 488 109 581 Average Temperature 140 | 22 70 150 129 57 302 Received Heat Transfer 1067 | . 237 69 177 . 584 Effects 26 | . . . 6 . 20 Shutdowns 5 | . . . 2 . 3 Energy Bleed 2 | . . . 1 . 1 Interference 6 | . . . 2 . 4 Matter Decay 1 | . . . . . 1 Short Circuit 2 | . . . 1 . 1 Damage (minor) 1 | . . . . . 1 Damage (major) 8 | . . . . . 8 Damage (core) 1 | . . . . . 1 Siege Activations . | . . . . . . Martial Activations . | . . . . . . Shielding Activations . | . . . . . . Robots Disrupted . | . . . . . . Combat Hostiles . | . . . . . . Robots Corrupted . | . . . . . . Combat Hostiles . | . . . . . . Parts Fried 2 | 1 . . . . 1 Impact Corruptions . | . . . . . . Robots Melted . | . . . . . . Combat Hostiles . | . . . . . . Parts Melted 4 | . . 1 3 . . Heat Transferred 2367 | 150 711 407 1012 . 87 Parts Sabotaged . | . . . . . . Parts Stolen . | . . . . . . Parts Stripped . | . . . . . . Power Chain Reactions 6 | 2 2 . 1 . 1 Alert | -11 -10 -10 -9 -9 -8 ------- Run | Yrd Mat Min Mat Min Mat Maximum Alert Level 1 | . 1 1 1 . . Low Security (%) 80 | 100 67 38 67 100 100 Level 1 19 | . 32 61 32 . . Level 2 . | . . . . . . Level 3 . | . . . . . . Level 4 . | . . . . . . Level 5 . | . . . . . . High Security . | . . . . . . Max Security . | . . . . . . Peak Influence 284 | 10 235 284 250 47 52 Initial 106 | . . 61 106 47 . Average 88 | . 136 172 176 4 8 Influence Increases 1190 | 15 398 303 331 . 143 Destroy 0b10 Robot/C 780 | . 280 200 200 . 100 Destroy 0b10 Robot/NC 60 | 15 20 . 10 . 15 Destroy Leader 156 | . 52 30 64 . 10 Allied During Kill 29 | . . 13 16 . . Successful Hack 7 | . . . 7 . . Disable Machine 90 | . 45 15 30 . . Destroy Structure 8 | . 1 . 4 . 3 Lose Combat Pursuer 60 | . . 45 . . 15 Influence Decreases 1190 | 15 240 187 482 123 143 Entered New Map 341 | . . 97 168 76 . Time Decay 686 | 15 190 70 294 47 70 Lost Part 163 | . 50 20 20 . 73 Squads Dispatched 7 | . 2 1 1 . 3 Investigation 2 | . . . 1 . 1 Extermination . | . . . . . . Reinforcement 4 | . 2 . . . 2 Assault 1 | . . 1 . . . Garrison . | . . . . . . Intercept . | . . . . . . Searches Triggered . | . . . . . . Construction Impeded . | . . . . . . Haulers Reinforced . | . . . . . . Active Scanning Responses . | . . . . . . Cargo Convoy Interrupts . | . . . . . . Stealth | -11 -10 -10 -9 -9 -8 --------- Run | Yrd Mat Min Mat Min Mat Distress Signals 8 | . 4 . 2 . 2 Communications Jammed . | . . . . . . Distress Signals . | . . . . . . Times Spotted 60 | . 23 11 14 1 11 Peak Tracking Total 7 | . 7 7 6 1 5 Tactical Retreats 2 | . . 1 . . 1 Traps | -11 -10 -10 -9 -9 -8 ------- Run | Yrd Mat Min Mat Min Mat Traps Triggered . | . . . . . . Indirectly . | . . . . . . Trap Hack Attempts . | . . . . . . Triggered . | . . . . . . Disarmed . | . . . . . . Reprogrammed . | . . . . . . Reused . | . . . . . . Traps Extracted . | . . . . . . Installed . | . . . . . . Triggered . | . . . . . . Machines | -11 -10 -10 -9 -9 -8 ---------- Run | Yrd Mat Min Mat Min Mat Machines Disabled 6 | . 3 1 2 . . Max in Single Turn 1 | . 1 1 1 . . Machines Repaired . | . . . . . . Machines Dismantled . | . . . . . . Machines Sabotaged . | . . . . . . Overloaded Fab Kills . | . . . . . . Hacking | -11 -10 -10 -9 -9 -8 --------- Run | Yrd Mat Min Mat Min Mat Machines Accessed 6 | . 3 . 2 . 1 Terminals 4 | . 2 . 2 . . Fabricators . | . . . . . . Repair Stations . | . . . . . . Recycling Units 1 | . 1 . . . . Scanalyzers 1 | . . . . . 1 Garrison Access . | . . . . . . Total Hacks 18 | . 11 . 4 . 3 Successful 9 | . 6 . 1 . 2 Failed 8 | . 4 . 3 . 1 Catastrophic 2 | . 1 . 1 . . Database Lockouts 1 | . 1 . . . . Manual . | . . . . . . Terminals 14 | . 10 . 4 . . Fabricators . | . . . . . . Repair Stations . | . . . . . . Recycling Units 1 | . 1 . . . . Scanalyzers 3 | . . . . . 3 Garrison Access . | . . . . . . Terminal Hacks 6 | . 5 . 1 . . Record 3 | . 3 . . . . Alert Level 2 | . 2 . . . . Assault Status 1 | . . . 1 . . Fabricator Hacks . | . . . . . . Repair Station Hacks . | . . . . . . Recycling Unit Hacks 1 | . 1 . . . . Report Inventory 1 | . 1 . . . . Scanalyzer 2 | . . . . . 2 Insert Component 1 | . . . . . 1 Analyze 1 | . . . . . 1 Garrison Access Hacks . | . . . . . . Unauthorized Hacks . | . . . . . . Terminals . | . . . . . . Fabricators . | . . . . . . Repair Stations . | . . . . . . Recycling Units . | . . . . . . Scanalyzers . | . . . . . . Garrison Access . | . . . . . . Data Cores Recovered . | . . . . . . Used . | . . . . . . Hacking Detections 6 | . 3 . 2 . 1 Full Trace Events 4 | . 2 . 1 . 1 Feedback Events . | . . . . . . Feedback Blocked . | . . . . . . Robot Schematics Acquired . | . . . . . . Robots Built . | . . . . . . Authchips . | . . . . . . Time . | . . . . . . Total Robot Build Rating . | . . . . . . Part Schematics Acquired 1 | . . . . . 1 Parts Built . | . . . . . . Authchips . | . . . . . . Time . | . . . . . . Total Part Build Rating . | . . . . . . Parts Repaired . | . . . . . . Time . | . . . . . . Parts Recycled . | . . . . . . Recycled Matter . | . . . . . . Retrieved Matter . | . . . . . . Retrieved Components . | . . . . . . Parts Scanalyzed 1 | . . . . . 1 Part Schematics Acquired 1 | . . . . . 1 Parts Damaged . | . . . . . . Bothacking | -11 -10 -10 -9 -9 -8 ------------ Run | Yrd Mat Min Mat Min Mat Used RIF Installer . | . . . . . . Robots Hacked . | . . . . . . Non-combat . | . . . . . . Combat . | . . . . . . Robot Hacks Applied . | . . . . . . Relay Couplers Released . | . . . . . . Fabnet Peak Effective % . | . . . . . . Robots Rewired . | . . . . . . Allies Hacked . | . . . . . . Hacks Repelled . | . . . . . . Allies | -11 -10 -10 -9 -9 -8 -------- Run | Yrd Mat Min Mat Min Mat Total Allies 1 | . . 1 . . . Largest Group 1 | . . 1 1 1 . Highest-Rated Group 31 | . . 31 31 31 . Highest-Rated Ally 31 | . . 31 31 31 . Total Orders . | . . . . . . Ally Attacks 22 | . . 4 17 1 . Total Damage 357 | . . 83 252 22 . Kills 6 | . . 2 4 . . Allies Corrupted . | . . . . . . Allies Melted . | . . . . . . Intel | -11 -10 -10 -9 -9 -8 ------- Run | Yrd Mat Min Mat Min Mat Active Infowar (turns) 226 | 16 157 . . . 53 Sensors 53 | . . . . . 53 Terrain 173 | 16 157 . . . . Robot Analysis Total . | . . . . . . Derelict Logs Recovered . | . . . . . . Drone Launches . | . . . . . . Drone Recoveries . | . . . . . . Exploration | -11 -10 -10 -9 -9 -8 ------------- Run | Yrd Mat Min Mat Min Mat Turns Passed 2585 | 122 596 143 654 577 493 Spaces Moved 1149 | 85 284 87 355 208 130 Core 33 | 24 . . 7 . 2 Treads . | . . . . . . Legs 867 | 61 284 76 110 208 128 Wheels 249 | . . 11 238 . . Hover . | . . . . . . Flight . | . . . . . . Fastest Speed 50 | 50 120 80 95 260 50 Average Speed 175 | 100 120 114 153 271 293 Slowest Speed 450 | 120 190 120 450 330 330 Overloaded Moves . | . . . . . . Propulsion Burnouts . | . . . . . . Robots Hopped . | . . . . . . Potential Cave-ins . | . . . . . . Cave-ins Triggered 1 | . . . . . 1 Exploration Rate (%) 30 | 5 54 24 37 48 15 Regions Visited 5 Branch Regions 2 Pre-discovered Areas . | . . . . . . Known Exits Taken . | . . . . . . Unknown Exits Taken 5 | 1 1 1 1 1 . Scrap Searched . | . . . . . . Spaces Dug . | . . . . . . Terrain Destroyed 7 | 2 . . 3 . 2 Melee . | . . . . . . Projectile . | . . . . . . AOE 7 | 2 . . 3 . 2 Terrain Rammed . | . . . . . . Walls Destroyed . | . . . . . . Machines Disabled . | . . . . . . Actions | -11 -10 -10 -9 -9 -8 --------- Run | Yrd Mat Min Mat Min Mat Total 1511 | 109 460 107 415 217 203 Wait 118 | . 109 1 2 . 6 Move 1144 | 84 283 86 354 207 130 Hop . | . . . . . . Pick Up 48 | 11 15 3 11 3 5 Fast Attach . | . . . . . . Attach 37 | 7 8 2 7 2 11 Detach 3 | . . . 1 . 2 Swap 7 | 1 1 . 5 . . Drop 19 | . 4 3 7 2 3 Fire 113 | 6 40 12 28 3 24 Melee . | . . . . . . Ram 5 | . . . . . 5 Kick 17 | . . . . . 17 Crush . | . . . . . . Escape Stasis . | . . . . . . Rewire . | . . . . . . Trap . | . . . . . . Miscellaneous . | . . . . . . Route ------- -11/Scrapyard -10/Materials (discovered 3 exits: *Mat x2 / [*Min]) -10/Mines -9/Materials (discovered 4 exits: *Mat / [*Min x2] / [*Sto]) -9/Mines (discovered 2 exits: *Mat x2) -8/Materials History --------- Turn | Location | Event 13 | -11/Scrapyard | Discovered new exit (range 16) 123 | -11/Scrapyard | Entered Materials 136 | -10/Materials | Central database locked down 318 | -10/Materials | Build established: Mutant 369 | -10/Materials | Discovered new exit (range 14) 379 | -10/Materials | Core integrity fell below 50% 403 | -10/Materials | Discovered new exit (range 15) 440 | -10/Materials | Discovered new exit (range 14) 525 | -10/Materials | Lost 3 parts (1p1n1w) 623 | -10/Materials | Derelicts attacked the area 719 | -10/Materials | Entered Mines 726 | -10/Mines | Met a Derelict testing a Signal Generator 731 | -10/Mines | Found Signal Generator 835 | -10/Mines | Discovered new exit (range 8) 847 | -10/Mines | Core integrity fell below 20% 862 | -10/Mines | Entered Materials 862 | -9/Materials | Accompanied by 1 ally 862 | -9/Materials | Evolved 2 slots: Power x1, Utility x1 878 | -9/Materials | Discovered new exit (range 11) 913 | -9/Materials | Discovered new exit (range 12) 1220 | -9/Materials | Discovered new exit (range 13) 1398 | -9/Materials | Discovered new exit (range 7) 1516 | -9/Materials | Entered Mines 1516 | -9/Mines | Accompanied by 1 ally 1525 | -9/Mines | YI-UF0 nonchalantly dropped a Grenade Launcher on the ground 1580 | -9/Mines | Discovered new exit (range 3) 1695 | -9/Mines | Destroyed YI-UF0 1934 | -9/Mines | Discovered new exit (range 12) 2093 | -9/Mines | Entered Materials 2093 | -8/Materials | Evolved 2 slots: Propulsion x1, Weapon x1 2474 | -8/Materials | Crushed by falling debris 2474 | -8/Materials | Core integrity fell below 50% 2507 | -8/Materials | Lost 10 parts (1p4u5w) 2574 | -8/Materials | Core integrity fell below 20% 2586 | -8/Materials | Destroyed by G-47 Trooper with Particle Gun Last Messages --------------- Acquired Sensor Array. GSFJ&KITO22VRFR%PIZL UQ8 Sml. Storage Unit destroyed. Kicked G-47 Trooper. System corrupted: Heat flow error (+266). Kicked G-47 Trooper. Aluminum Leg destroyed. Slammed into G-47 Trooper. Cld. Ion Engine destroyed. Sml. Battery destroyed. Slammed into G-47 Trooper. Destabilizing: System corrupted (+1). Acquired 3 matter. Slammed into G-47 Trooper. G-47 Trooper knocked back. Slammed into G-47 Trooper. Map ----- +----------------------------------------------------+ | | | | | | | ?????????????????????????????????????????????????? | | ?????????????????????????????????????????????????? | | ?????????????????????????????????????????????????? | | ?????????????????????????????????????????????????? | | ?????????????????????????????????????????????????? | | ???????????????????????????#####?????????????????? | | ??????????????????????????# #?????????????????? | | ????????????????????????# #?????????????????? | | ?? ??????????????########## #?????????????????? | | ??##/############## + #?????????????????? | | ??# + """# ??????????? | | ??+ ##+#####+##### """# ??????? | | ?????# # #?#? """# ???????? | | ?????# # #?# """#### """ """ ??????? | | ?????# # #?# #??# """ """ "?????? | | ?????# """ # #?# #??# """ """ """ ??? | | ?????# """ # #?# #??# ??? | | ??#??+ """ # #?# #??# ??? | | ??# #####+## ############### ???? | | ?## ????# ####### ! # ????? | | ## #### #?????# ! ! # ??????? | | #?????# %% # #???????? | | T #?????# @g% # % #???????? | | ## ###/######## %%% # #?????"?? | | ?####??# ? ###########g### #?? """?? | | ???????# "" + g %# """#? | | ???????# ""S # %*% %+ #? | | ???????# "" # % # ""??? | | ???????# #+###### ###+#######???????? | | ???????+ """ #??????#^ ^ ^# =[[ #???????? | | ???????# """ #??????# # #???????? | | ???????# """ #??????# # #???????? | | ???????# #??????# # """ #???????? | | ???????##########??????# # """"" #???????? | | ???????????????????????# # """"" #???????? | | ???????????????????????### # """"" #???????? | | ?????????????????????????#% # """ #???????? | | ?????????????????????????# ###########???????? | | ?????????????????????????# #?????????????????? | | ?????????????????????????# % #?????????????????? | | ?????????????????????????? ??????????????????? | | ???????????????????????????? ??????????????????? | | ?????????????????????????????????????????????????? | | ?????????????????????????????????????????????????? | | ?????????????????????????????????????????????????? | | ?????????????????????????????????????????????????? | | ?????????????????????????????????????????????????? | +----------------------------------------------------+ Best States ------------- Heat Dissipation 38 Energy Generation 21 Energy Capacity 645 Matter Stores 300 Matter Capacity 300 Sight Range 16 Robot Scan Range 14 Terrain Scan Range 16 Terrain Scan Density 85 Armor Coverage 150 Core Shielding 20 Evasion (%) 55 Defensive Hacking 10 Item Schematics ----------------- Beamcaster | -8/Materials | Scanalyzed Robot Schematics ------------------ None Fabricated ------------ Nothing Repaired ---------- Nothing Alien Tech Used ----------------- None Achievements -------------- Unlikely Earthworm Challenges ------------ None Game ------ Seed GreatMatterBotcube Manual? 0 Play Time 00:26:56 Cumulative 5.9 hours Start 2025.10.04 @ 21:30:08 End 2025.10.04 @ 21:57:06 Sessions 1 Manual Loads 0 Difficulty Rogue Special Mode None Game No. 11 Rogue 11 Adventurer 0 Explorer 0 Win Type - Total 0 Types 0/0/0/0/0/0/0/0/0/0 Lore% 2 Gallery% 12 Achievement% 12 Wizard Run 0 Options --------- Layout 1 ASCII 0 Keyboard 0 Movement Mouse Keybinds 0 Fullscreen 1 Font 24/Smallcaps Map View 50x35 Zoom Use 0% Tactical HUD 0 Map Filters NONE Filters NONE Steam 1 RUN: f94216da-c342-4d60-9811-511a37306511